bitfinex/quotes_ETHUSD_20240717
["timestamp","ask_amount","ask_price","bid_price","bid_amount"]
[1721178645059,0.0546317,3498.9,3498.2,0.05542646]
[1721178645343,0.0546317,3498.9,3496.9,3.0]
[1721178645545,2.9126817,3498.9,3497.2,3.03]
[1721178645794,0.0546317,3498.9,3497.8,3.03]
[1721178646088,0.0546317,3498.9,3497.9,0.55]
[1721178646255,0.0546317,3498.9,3497.9,0.05543971]
[1721178646256,2.4946,3498.8,3497.9,0.05543971]
[1721178646460,2.85824,3498.7,3497.9,0.05543971]
[1721178646657,2.85844,3498.5,3496.8,3.03]
[1721178646863,6.2876717,3498.9,3497.2,3.03]
[1721178647048,0.0546317,3498.9,3498.0,3.03]
[1721178647457,0.0546317,3498.9,3498.1,0.05494513]
[1721178648260,0.0546317,3498.9,3498.0,4.73]
[1721178648588,4.24607905,3499.0,3498.1,0.5279362]
[1721178648589,3.70443372,3499.0,3498.1,0.5279362]
[1721178648786,3.70443372,3499.0,3498.1,0.0549362]
[1721178649285,3.70443372,3499.0,3497.7,3.03]
[1721178649448,3.70443372,3499.0,3497.6,2.844994]
[1721178649449,3.70443372,3499.0,3498.2,0.05493179]
[1721178649649,6.56239372,3499.0,3497.9,3.03]
[1721178649885,6.56239372,3499.0,3498.3,0.05492737]
[1721178650188,4.36067309,3499.0,3497.3,4.145094]
[1721178650448,2.85834,3498.6,3497.2,3.03]
[1721178650597,2.85834,3498.6,3497.5,3.03]
[1721178650755,2.85839,3498.5,3497.3,0.0526736]
[1721178650956,2.85839,3498.5,3496.6,5.596]
[1721178650957,2.85886,3497.9,3497.6,0.05266034]
[1721178651157,2.85886,3497.9,3496.4,0.2867]
[1721178651158,2.85886,3497.9,3497.4,0.05266918]
[1721178651489,2.85918,3497.5,3496.5,0.17]
[1721178651686,0.527886,3497.9,3496.5,0.17]
[1721178651869,0.527886,3497.9,3496.6,0.05276682]
[1721178651870,2.85981,3496.8,3496.6,0.05276682]
[1721178652251,2.85981,3496.8,3495.6,3.03]
[1721178652455,6.2342,3497.5,3495.6,3.03]
[1721178652456,2.85975,3496.9,3495.6,3.03]
[1721178652655,3.375,3497.5,3495.5,1.7]
[1721178652656,3.375,3497.5,3496.1,3.03]
[1721178652879,2.42,3498.2,3496.4,1.7]
[1721178652880,2.85891,3497.9,3496.4,1.7]
[1721178653097,3.375,3497.5,3496.5,0.17]
[1721178653393,3.375,3497.5,3495.5,1.7]
[1721178653559,2.8602,3496.3,3495.4,3.03]
[1721178653760,2.8602,3496.3,3495.6,0.05294987]
[1721178653997,2.85967,3496.9,3495.5,0.0529543]
[1721178654167,3.375,3497.5,3495.7,0.05294545]
[1721178654168,2.86009,3496.4,3495.7,0.05294545]
[1721178654367,2.85976,3496.8,3495.7,3.03]
[1721178654686,2.8594,3497.3,3495.8,4.78294103]
[1721178654995,2.85951,3497.1,3495.8,4.78294103]
[1721178655197,2.8596,3497.0,3495.8,4.78294103]
[1721178655405,2.8596,3497.0,3496.0,3.03]
[1721178655562,2.8596,3497.0,3496.1,0.55]
[1721178655758,3.375,3497.5,3496.1,0.05292776]
[1721178655970,0.865391,3497.9,3496.1,0.05292776]
[1721178655971,2.86022,3496.3,3496.1,0.05292776]
[1721178656171,2.86001,3496.5,3496.1,0.05292776]
[1721178656496,2.86001,3496.5,3495.8,0.526124]
[1721178656718,2.86013,3496.4,3495.9,0.0529366]
[1721178656926,2.86013,3496.4,3495.8,0.526124]
[1721178657121,2.86001,3496.5,3495.9,0.0529366]
[1721178657326,0.623501,3496.5,3494.7,7.4]
[1721178657624,0.623501,3496.5,3494.4,13.89]
[1721178657625,2.86056,3495.9,3494.8,0.05298527]
[1721178657828,2.8606,3495.8,3494.8,0.05298527]
[1721178657987,2.86069,3495.7,3494.5,3.03]
[1721178658323,2.86069,3495.7,3494.2,8.159195]
[1721178658324,2.86045,3496.0,3494.3,3.03]
[1721178658485,2.86045,3496.0,3494.5,3.03]
[1721178658486,2.86063,3495.8,3494.5,3.03]
[1721178658685,2.86067,3495.7,3494.6,0.04947942]
[1721178658922,2.86093,3495.4,3494.6,0.04947942]
[1721178659129,2.86111,3495.2,3494.4,1.1189195]
[1721178659321,2.3931,3495.7,3494.5,0.9772953]
[1721178659322,5.25377,3495.7,3494.5,0.9772953]
[1721178659522,5.25382,3495.7,3494.5,0.9772953]
[1721178660106,2.86091,3495.4,3494.5,0.9772953]
[1721178660529,2.86084,3495.5,3494.5,0.9772953]
[1721178661194,2.86091,3495.4,3494.5,0.9772953]
[1721178661417,2.86084,3495.5,3494.6,0.40072953]
[1721178661728,2.86084,3495.5,3494.7,0.04947499]
[1721178661893,2.86094,3495.4,3494.7,0.04947499]
[1721178662094,2.86084,3495.5,3494.7,0.04947499]
[1721178662511,2.86093,3495.4,3494.7,0.04947499]
[1721178663039,5.25381,3495.7,3494.7,0.04947499]
[1721178663327,2.86083,3495.5,3494.7,0.04947499]
[1721178663836,3.375,3496.1,3495.2,1.7]
[1721178663990,2.25,3496.4,3495.3,3.75]
[1721178664333,2.25,3496.4,3495.3,3.79944844]
[1721178664334,2.86014,3496.4,3495.3,3.79944844]
[1721178664501,3.375,3496.8,3495.3,3.79944844]
[1721178664931,2.2695,3497.1,3495.7,4.73]
[1721178665095,2.2695,3498.1,3496.6,1.7]
[1721178665462,2.2695,3498.1,3496.7,0.60017542]
[1721178665463,2.85883,3498.0,3496.7,0.60017542]
[1721178665636,3.375,3498.3,3497.2,1.7]
[1721178665927,3.375,3498.3,3496.7,0.60017542]
[1721178665928,6.23356,3498.3,3496.7,0.05017542]
[1721178666104,6.23356,3498.3,3497.3,0.04999927]
[1721178666105,3.375,3498.3,3497.3,0.04999927]
[1721178666307,2.3206,3497.6,3495.8,7.873]
[1721178666503,2.85949,3497.2,3495.9,0.55]
[1721178666823,5.6956,3497.6,3495.8,0.473]
[1721178667042,2.85992,3496.6,3496.0,0.05005674]
[1721178667187,5.13458,3496.3,3495.9,0.05006116]
[1721178667388,5.13458,3496.3,3495.2,7.4]
[1721178667389,3.375,3496.2,3494.7,2.0]
[1721178667587,2.86087,3495.5,3494.7,2.0]
[1721178667822,2.86043,3496.0,3494.8,0.04836335]
[1721178668006,2.8605,3495.9,3494.9,0.20483633]
[1721178668329,2.86059,3495.8,3494.9,0.25153133]
[1721178668532,2.86066,3495.7,3494.9,0.25153133]
[1721178668692,2.86057,3495.8,3494.9,0.25153133]
[1721178668892,2.86076,3495.6,3494.9,0.20483633]
[1721178669229,2.86036,3496.1,3495.0,0.04680632]
[1721178669543,0.142,3495.6,3495.0,0.04680632]
[1721178670108,0.142,3495.6,3495.0,3.77497059]
[1721178670310,0.142,3495.6,3495.1,0.55]
[1721178670713,0.142,3495.6,3495.2,0.04694533]
[1721178671332,0.142,3495.6,3495.3,5.28]
[1721178671832,5.13395,3497.1,3495.3,5.28]
[1721178671833,2.2744,3497.1,3495.8,3.03]
[1721178672038,2.2744,3497.1,3495.7,1.7]
[1721178672039,2.85931,3497.4,3496.0,3.03]
[1721178672213,2.85931,3497.4,3496.2,3.03]
[1721178672539,3.375,3497.6,3496.3,0.55]
[1721178672751,3.375,3497.6,3496.3,0.59681472]
[1721178672752,2.85918,3497.5,3496.3,0.59681472]
[1721178672926,3.375,3497.6,3496.5,1.7]
[1721178673234,2.85873,3498.1,3496.6,4.46520107]
[1721178673607,3.375,3498.3,3496.9,1.7]
[1721178673812,6.23354,3498.3,3497.0,0.55]
[1721178674001,6.23354,3498.3,3497.0,3.62671965]
[1721178674002,3.375,3498.3,3497.0,3.62671965]
[1721178675119,6.23355,3498.3,3497.0,3.62671965]
[1721178675320,7.104415,3498.3,3497.1,3.39267197]
[1721178675536,7.104415,3498.3,3497.2,0.59619787]
[1721178675537,6.23355,3498.3,3497.2,0.59619787]
[1721178675741,2.85923,3497.5,3497.2,0.04619787]
[1721178676057,2.85926,3497.4,3495.9,0.473]
[1721178676227,2.8595,3497.2,3495.9,2.173]
[1721178676552,5.1406,3497.2,3496.0,0.04625092]
[1721178676758,3.375,3497.6,3496.0,3.03]
[1721178676941,2.85941,3497.3,3495.9,1.7]
[1721178677142,2.85941,3497.3,3496.1,0.0462465]
[1721178677359,2.85941,3497.3,3495.9,1.7]
[1721178677360,2.85945,3497.2,3496.0,0.04625092]
[1721178677520,3.375,3497.6,3496.1,0.22087159]
[1721178677858,2.85973,3496.9,3496.1,0.0462465]
[1721178678030,2.85973,3496.9,3495.5,7.4]
[1721178678031,2.85976,3496.8,3495.7,6.03]
[1721178678230,2.85968,3496.9,3496.2,0.04637738]
[1721178678537,2.85952,3497.1,3495.8,4.73]
[1721178678740,2.85952,3497.1,3496.3,0.04637296]
[1721178678944,2.85952,3497.1,3496.4,0.04636854]
[1721178679317,2.85952,3497.1,3495.9,3.58]
[1721178679538,2.85952,3497.1,3496.5,0.04636412]
[1721178679750,3.375,3497.6,3496.6,0.0463597]
[1721178679915,2.85903,3497.7,3496.6,0.5963597]
[1721178680136,2.85903,3497.7,3496.7,0.04635527]
[1721178680872,2.85871,3498.1,3496.8,0.55]
[1721178681016,2.85871,3498.1,3496.9,0.41593553]
[1721178681362,2.85871,3498.1,3497.0,0.55]
[1721178681714,2.85871,3498.1,3497.1,0.04630198]
[1721178681925,5.8236,3498.3,3497.1,0.04630198]
[1721178682164,5.8236,3498.3,3495.7,2.86065]
[1721178682165,2.4486,3498.3,3495.7,2.86065]
[1721178682331,3.375,3497.6,3495.8,4.054735]
[1721178682529,2.85935,3497.3,3495.8,5.80103749]
[1721178682941,2.85935,3497.3,3495.9,3.013]
[1721178683142,2.85956,3497.1,3496.0,0.04629364]
[1721178683356,2.85956,3497.1,3496.1,0.41140286]
[1721178683694,2.86002,3496.5,3496.0,0.04629364]
[1721178683985,2.86016,3496.3,3496.2,0.04478763]
[1721178684269,2.86024,3496.2,3496.1,0.04486664]
[1721178684482,2.86024,3496.2,3495.0,3.013]
[1721178684635,2.86024,3496.2,3495.1,0.4713]
[1721178684836,2.85987,3496.7,3495.5,3.013]
[1721178685073,6.23474,3496.9,3495.5,3.013]
[1721178685382,6.23474,3496.9,3495.6,0.04497758]
[1721178686049,2.86002,3496.5,3495.6,0.04497758]
[1721178686230,2.86002,3496.5,3495.6,0.47579776]
[1721178686433,2.86002,3496.5,3495.7,0.04496428]
[1721178686665,2.85992,3496.6,3495.7,0.04496428]
[1721178686867,2.85976,3496.8,3495.7,0.59496428]
[1721178687071,2.85985,3496.7,3495.7,0.59496428]
[1721178687273,2.85985,3496.7,3495.8,0.7083762]
[1721178687573,3.375,3496.9,3495.8,0.75333605]
[1721178687749,3.375,3496.9,3495.9,0.55]
[1721178688272,3.375,3496.9,3496.0,0.04495101]
[1721178688776,3.375,3496.9,3496.0,3.05795101]
[1721178689082,2.85935,3497.3,3496.1,4.16463272]
[1721178689374,3.375,3497.6,3496.2,2.25]
[1721178689576,3.375,3497.6,3496.2,5.263]
[1721178689739,3.375,3497.6,3496.3,0.04493774]
[1721178689940,2.85866,3498.2,3496.8,3.013]
[1721178690135,2.85866,3498.2,3496.9,1.06613127]
[1721178690339,3.375,3498.4,3496.9,4.07913127]
[1721178690340,6.23348,3498.4,3496.9,4.07913127]
[1721178690599,3.375,3498.4,3497.1,4.713]
[1721178690875,2.85812,3498.8,3497.5,4.713]
[1721178691034,2.85812,3498.8,3497.6,0.55]
[1721178691239,2.85812,3498.8,3497.7,0.5263]
[1721178691437,2.85812,3498.8,3497.7,0.571016]
[1721178692284,2.8582,3498.7,3497.7,0.571016]
[1721178692438,3.70443372,3499.0,3497.7,0.044716]
[1721178692637,3.70443372,3499.0,3496.9,5.9185]
[1721178692638,3.375,3498.4,3497.1,1.7]
[1721178692878,2.85854,3498.3,3497.2,0.55]
[1721178693097,2.85861,3498.2,3497.2,0.5930907]
[1721178693445,3.375,3498.4,3497.2,0.5930907]
[1721178693677,3.375,3498.4,3497.3,3.54360907]
[1721178693855,3.375,3498.4,3497.4,0.55]
[1721178694385,2.85812,3498.8,3497.5,0.04307744]
[1721178694673,6.56241372,3499.0,3497.5,0.04307744]
[1721178695038,2.85843,3498.5,3497.5,0.04307744]
[1721178695572,2.85826,3498.7,3497.5,0.04307744]
[1721178695752,2.85826,3498.7,3497.3,3.013]
[1721178695955,2.85806,3498.9,3497.4,4.375249]
[1721178696278,3.70443372,3499.0,3498.0,3.013]
[1721178696883,3.70443372,3499.0,3498.1,0.04305093]
[1721178697961,3.70443372,3499.0,3498.1,3.60605093]
[1721178698183,3.70443372,3499.0,3498.1,3.05605093]
[1721178698388,3.70443372,3499.0,3498.2,0.47560509]
[1721178698705,3.70443372,3499.0,3498.3,0.0430421]
[1721178699056,3.70443372,3499.0,3498.4,4.713]
[1721178699267,3.70443372,3499.0,3498.4,4.75603768]
[1721178699482,3.70443372,3499.0,3498.4,1.74303768]
[1721178699682,3.70443372,3499.0,3498.5,0.52316428]
[1721178699869,3.70443372,3499.0,3498.5,0.56619754]
[1721178703107,3.70443372,3499.0,3498.8,1.7]
[1721178703408,3.70443372,3499.0,3498.9,5.4857]
[1721178703697,3.70443372,3499.0,3498.9,5.5287156]
[1721178703902,3.10826943,3499.0,3498.9,8.44608122]
[1721178704059,3.10826943,3499.0,3498.9,11.30412122]
[1721178704408,1.56277813,3499.0,3498.9,14.71216122]
[1721178704560,1.56277813,3499.0,3498.9,11.30412122]
[1721178704760,1.56277813,3499.0,3498.9,11.2447956]
[1721178704985,1.56277813,3499.0,3498.9,5.5287156]
[1721178705397,1.56277813,3499.0,3498.9,0.0430156]
[1721178705601,1.56277813,3499.0,3498.9,1.7430156]
[1721178706229,1.56277813,3499.0,3498.9,0.0430156]
[1721178706432,1.56277813,3499.0,3498.9,0.51861716]
[1721178706594,1.56277813,3499.0,3498.9,2.21861716]
[1721178707310,1.56277813,3499.0,3498.9,0.0430156]
[1721178707636,2.85823,3498.7,3497.5,1.7]
[1721178707836,2.85814,3498.8,3497.6,1.7]
[1721178708011,2.85814,3498.8,3497.7,0.17]
[1721178708212,7.79573813,3499.0,3497.4,3.013]
[1721178708421,2.85813,3498.8,3497.5,1.7]
[1721178708813,2.85813,3498.8,3497.2,3.013]
[1721178709008,4.93777813,3499.0,3498.0,1.7]
[1721178709213,1.56277813,3499.0,3498.4,1.7]
[1721178709695,1.56277813,3499.0,3497.3,3.0]
[1721178709696,1.56277813,3499.0,3497.3,5.85928]
[1721178709900,1.56277813,3499.0,3498.4,1.7]
[1721178710114,1.56277813,3499.0,3498.0,1.7]
[1721178710438,1.56277813,3499.0,3497.9,3.013]
[1721178710829,4.42073813,3499.0,3497.5,3.0]
[1721178711018,2.85804,3498.9,3497.4,2.81055]
[1721178711222,4.93777813,3499.0,3497.5,0.281055]
[1721178711560,2.85839,3498.5,3497.2,3.013]
[1721178711752,2.85836,3498.6,3496.7,1.7]
[1721178711952,2.85871,3498.1,3496.6,2.85]
[1721178712153,2.85878,3498.0,3496.6,2.85]
[1721178712354,2.85878,3498.0,3496.7,3.013]
[1721178712563,2.85878,3498.0,3496.8,3.5993]
[1721178712857,2.85887,3497.9,3496.8,3.5993]
[1721178713580,2.85846,3498.4,3497.4,1.7]
[1721178713744,2.85817,3498.8,3497.5,3.013]
[1721178713939,2.85825,3498.7,3497.6,0.4713]
[1721178714259,2.85812,3498.8,3497.6,0.50752597]
[1721178714667,2.3323,3498.9,3497.9,1.7]
[1721178714875,5.19038,3498.9,3497.9,1.7]
[1721178715189,5.19038,3498.9,3498.0,0.20983824]
[1721178715360,2.85812,3498.8,3498.0,0.20983824]
[1721178715870,2.85822,3498.7,3498.0,0.03621538]
[1721178716072,2.85822,3498.7,3497.6,3.4843]
[1721178716384,2.85822,3498.7,3498.1,0.03613128]
[1721178716690,2.85822,3498.7,3497.6,3.4843]
[1721178716902,2.85822,3498.7,3498.2,0.03612687]
[1721178717046,2.85822,3498.7,3497.6,3.4843]
[1721178717241,2.85822,3498.7,3498.3,0.03612245]
[1721178717442,2.85822,3498.7,3497.7,0.51843]
[1721178717665,2.85829,3498.6,3498.4,0.03611803]
[1721178717867,2.85829,3498.6,3497.7,0.51843]
[1721178718271,2.85829,3498.6,3497.8,0.03614453]
[1721178719248,2.8587,3498.1,3497.8,0.03614453]
[1721178719479,6.06362,3498.2,3496.9,1.7]
[1721178719670,6.06362,3498.2,3496.8,2.2863]
[1721178719873,2.3323,3498.9,3497.5,1.7]
[1721178720089,2.85814,3498.8,3497.6,3.013]
[1721178720249,2.85821,3498.7,3497.7,0.4713]
[1721178720456,2.85821,3498.7,3497.7,0.03637549]
[1721178720681,2.85821,3498.7,3497.5,1.7]
[1721178720896,3.205,3498.5,3497.8,0.03637108]
[1721178721047,3.205,3498.5,3497.0,1.7]
[1721178721251,2.85853,3498.3,3497.1,4.713]
[1721178721476,2.85853,3498.3,3497.2,0.4713]
[1721178721682,2.85853,3498.3,3497.5,1.7]
[1721178721904,2.85863,3498.2,3497.3,0.03639494]
[1721178722065,3.205,3498.0,3497.6,0.03638168]
[1721178722267,3.205,3498.0,3496.9,4.713]
[1721178722500,3.205,3498.0,3497.7,0.03637726]
[1721178722657,3.205,3498.0,3497.0,0.52993]
[1721178722988,3.205,3498.0,3497.8,0.03637285]
[1721178723199,3.205,3498.0,3497.0,0.52993]
[1721178723354,2.85891,3497.9,3497.0,0.52993]
[1721178724947,2.85894,3497.8,3497.0,0.52993]
[1721178725351,2.85894,3497.8,3496.8,0.5863]
[1721178725352,3.205,3497.6,3496.8,0.5863]
[1721178725814,8.50976,3497.6,3496.8,0.5863]
[1721178726224,5.6506,3497.6,3496.8,0.5863]
[1721178726379,8.5097,3497.6,3496.8,0.5863]
[1721178726575,2.85936,3497.3,3496.8,0.5863]
[1721178726921,6.06456,3497.1,3496.0,0.2990771]
[1721178727209,2.8596,3497.0,3496.0,0.2990771]
[1721178727455,3.205,3497.1,3496.0,0.2990771]
[1721178727727,2.86009,3496.4,3496.0,0.2990771]
[1721178728012,3.205,3496.1,3496.0,0.2990771]
[1721178728385,8.40263,3496.1,3496.0,0.2990771]
[1721178728982,6.06533,3496.1,3496.0,0.2990771]
[1721178729915,3.205,3496.1,3496.0,0.2990771]
[1721178730512,2.86003,3496.5,3496.0,0.2990771]
[1721178731305,5.4736,3496.6,3496.0,0.2990771]
[1721178731483,3.205,3496.6,3496.0,0.2990771]
[1721178731682,5.72048,3496.2,3496.1,0.03547767]
[1721178732112,2.86013,3496.4,3496.0,0.2990771]
[1721178732113,5.72066,3496.1,3496.0,0.2990771]
[1721178732321,8.92566,3496.1,3496.0,0.2990771]
[1721178732520,5.72066,3496.1,3496.0,0.2990771]
[1721178732856,8.92566,3496.1,3496.0,0.2990771]
[1721178733423,6.06533,3496.1,3496.0,0.2990771]
[1721178734105,8.92566,3496.1,3496.0,0.2990771]
[1721178734308,6.06533,3496.1,3496.0,0.2990771]
[1721178734504,8.92566,3496.1,3496.0,0.2990771]
[1721178734766,9.818226,3496.1,3496.0,0.2990771]
[1721178735446,8.92566,3496.1,3496.0,0.2990771]
[1721178736905,14.14619,3496.1,3496.0,0.2990771]
[1721178737718,2.861,3495.3,3494.7,2.0]
[1721178737922,3.205,3495.0,3494.7,2.0]
[1721178738125,3.205,3495.0,3494.8,0.03590558]
[1721178738336,3.205,3495.5,3494.9,0.20359056]
[1721178740010,3.205,3495.5,3494.2,7.57488]
[1721178740213,3.205,3495.5,3494.3,0.03592771]
[1721178740782,3.205,3496.9,3495.6,3.013]
[1721178740783,2.3567,3496.9,3495.6,3.013]
[1721178740957,3.205,3497.2,3496.1,1.7]
[1721178741116,3.205,3497.2,3496.2,0.17]
[1721178741463,3.205,3497.2,3496.2,0.20619277]
[1721178742540,3.205,3496.7,3496.2,0.03619277]
[1721178742929,3.205,3496.7,3495.5,4.56081]
[1721178743159,3.205,3496.7,3495.6,3.0]
[1721178743331,3.205,3497.2,3495.6,3.03599596]
[1721178743516,3.205,3497.2,3495.7,1.0609806]
[1721178743716,6.06445,3497.2,3495.7,1.0609806]
[1721178744050,6.06445,3497.2,3495.8,0.03598712]
[1721178744264,3.205,3496.7,3495.8,0.03598712]
[1721178744577,6.06485,3496.7,3495.8,0.03598712]
[1721178744862,6.06485,3496.7,3495.3,2.86]
[1721178744863,2.4013,3496.6,3495.3,2.86]
[1721178745038,2.4013,3496.6,3495.9,0.03598269]
[1721178745360,2.4013,3496.6,3495.4,0.286]
[1721178745361,2.86001,3496.5,3495.4,0.286]
[1721178745788,2.86001,3496.5,3495.5,0.03600039]
[1721178745940,2.4013,3496.6,3495.5,0.03600039]
[1721178746465,3.205,3496.7,3495.5,0.03600039]
[1721178746664,3.205,3496.7,3495.6,1.07559204]
[1721178747264,3.205,3496.7,3495.7,0.03609256]
[1721178748048,6.06486,3496.7,3495.7,0.03609256]
[1721178748241,2.85923,3497.5,3495.7,0.03609256]
[1721178748242,3.205,3496.2,3495.7,0.03609256]
[1721178748568,2.86043,3496.0,3494.4,5.16171]
[1721178748752,2.86043,3496.0,3494.5,2.645171]
[1721178749060,2.4321,3496.1,3494.5,2.645171]
[1721178749061,2.4321,3496.1,3494.5,4.37997389]
[1721178749263,2.4321,3496.1,3494.6,3.013]
[1721178749571,2.4321,3496.1,3494.5,7.24159389]
[1721178749572,2.86001,3496.5,3495.0,1.7]
[1721178749939,2.86001,3496.5,3495.1,0.03477634]
[1721178750144,3.205,3496.3,3495.2,0.76090163]
[1721178750374,5.6613,3496.8,3495.4,1.7]
[1721178750896,5.6613,3496.8,3495.5,0.03475864]
[1721178751515,8.52106,3496.8,3495.5,0.03475864]
[1721178752529,2.85993,3496.6,3495.2,0.76090163]
[1721178752809,3.205,3496.3,3495.6,0.03475422]
[1721178753105,3.205,3496.3,3495.7,0.0347498]
[1721178753467,3.205,3496.3,3495.3,1.7]
[1721178753669,3.205,3496.3,3495.8,0.03474537]
[1721178753868,3.205,3496.3,3494.9,1.7]
[1721178753869,2.86025,3496.2,3494.9,1.7]
[1721178754095,2.86049,3496.0,3495.0,0.45614]
[1721178754300,2.86047,3496.0,3495.0,0.49092077]
[1721178754630,2.86047,3496.0,3495.0,0.03478077]
[1721178754970,2.86047,3496.0,3494.6,3.0]
[1721178755298,2.8605,3495.9,3494.6,3.0]
[1721178755500,2.8605,3495.9,3494.7,0.03479404]
[1721178755680,3.205,3496.3,3494.8,0.5679965]
[1721178756017,3.205,3496.3,3495.1,2.86113]
[1721178756305,3.205,3496.3,3495.2,0.03477192]
[1721178756505,2.85989,3496.7,3495.2,0.03477192]
[1721178756506,5.6613,3496.8,3495.4,1.7]
[1721178756697,8.52106,3496.8,3495.4,1.7]
[1721178756892,2.85996,3496.6,3495.5,0.79432883]
[1721178757092,2.85996,3496.6,3495.5,0.03475864]
[1721178757608,8.52106,3496.8,3495.1,3.013]
[1721178757900,2.85985,3496.7,3495.2,3.0]
[1721178758067,8.52106,3496.8,3495.4,1.7]
[1721178758267,5.6613,3496.8,3495.4,1.7]
[1721178758466,8.5211,3496.8,3495.5,1.08043783]
[1721178759870,2.85985,3496.7,3495.5,0.03475864]
[1721178760066,8.5211,3496.8,3495.5,0.03475864]
[1721178760067,3.205,3496.3,3495.5,0.03475864]
[1721178760267,2.86026,3496.2,3494.8,2.2679965]
[1721178760698,2.86026,3496.2,3494.9,0.03483472]
[1721178763016,3.205,3496.3,3495.2,1.7]
[1721178763326,3.205,3496.3,3495.3,0.20481703]
[1721178763917,3.205,3496.3,3495.3,0.03481703]
[1721178764312,3.205,3496.3,3494.8,0.5679965]
[1721178764492,3.205,3496.3,3495.4,0.03489929]
[1721178764695,3.205,3496.3,3494.8,0.5679965]
[1721178764899,3.205,3496.3,3494.8,3.4293265]
[1721178765197,2.86032,3496.2,3494.9,4.11423265]
[1721178765399,2.86032,3496.2,3494.9,1.14915407]
[1721178765400,2.86049,3495.9,3494.9,1.14915407]
[1721178765717,3.205,3495.7,3494.9,0.03492142]
[1721178768022,6.06565,3495.7,3494.9,0.03492142]
[1721178768221,2.8609,3495.5,3494.9,0.03492142]
[1721178768521,2.86092,3495.4,3493.8,5.13005]
[1721178768708,2.86092,3495.4,3495.0,0.03491699]
[1721178768909,2.86092,3495.4,3494.4,0.29931167]
[1721178769112,2.86092,3495.4,3494.0,1.7]
[1721178769421,8.53398,3495.7,3494.6,0.2993095]
[1721178769422,5.6733,3495.7,3494.6,0.2993095]
[1721178769730,3.205,3495.7,3494.7,0.03493027]
[1721178769932,3.205,3495.7,3494.8,0.28964603]
[1721178770294,2.4404,3496.8,3495.0,1.7]
[1721178770595,6.06502,3496.5,3495.0,4.56121]
[1721178770794,2.86008,3496.4,3495.1,0.03501344]
[1721178771013,3.205,3496.0,3495.1,0.03501344]
[1721178771705,3.205,3496.5,3495.1,2.89612344]
[1721178771911,3.205,3496.5,3495.2,1.04573334]
[1721178772299,3.205,3496.5,3495.4,1.7]
[1721178772731,3.205,3496.5,3495.5,0.03499219]
[1721178773800,3.205,3496.5,3495.1,2.86107]
[1721178774137,3.205,3496.5,3495.4,4.56088]
[1721178774448,3.205,3496.5,3495.5,1.38194682]
[1721178774624,3.205,3497.0,3495.8,1.7]
[1721178775048,3.205,3497.0,3495.9,0.03493911]
[1721178775497,3.205,3497.0,3495.9,2.89542911]
[1721178775701,3.205,3497.0,3496.2,1.7]
[1721178776136,3.205,3497.0,3496.3,0.03492143]
[1721178776432,3.95491275,3497.8,3496.3,0.03492143]
[1721178776433,3.205,3497.5,3496.4,0.17349214]
[1721178776622,3.205,3496.6,3496.5,0.03491258]
[1721178776808,3.205,3496.6,3495.6,2.86071]
[1721178777017,3.205,3496.6,3495.7,3.0]
[1721178777220,3.205,3496.6,3495.7,3.03494796]
[1721178777422,3.205,3496.6,3495.7,0.03494796]
[1721178777609,3.205,3496.6,3495.4,1.7]
[1721178777811,3.205,3496.6,3495.5,0.79104881]
[1721178778314,3.205,3496.6,3495.6,1.7]
[1721178778743,3.205,3496.6,3495.7,0.03494796]
[1721178779061,3.205,3497.1,3496.0,1.7]
[1721178779236,3.205,3497.1,3496.1,0.03493027]
[1721178779411,3.205,3497.1,3496.2,0.45953403]
[1721178779620,3.205,3497.1,3496.3,0.03492143]
[1721178779831,3.205,3497.6,3496.3,0.03492143]
[1721178780038,3.205,3497.6,3496.4,1.7]
[1721178780349,3.205,3497.6,3496.5,0.03491258]
[1721178780560,3.205,3497.6,3496.6,0.75950226]
[1721178780860,3.205,3497.6,3496.7,0.03490374]
[1721178781561,3.205,3497.1,3496.7,0.03490374]
[1721178781913,2.85964,3497.0,3495.7,3.0]
[1721178782115,2.85964,3497.0,3495.8,0.5456092]
[1721178782319,2.85964,3497.0,3495.8,0.5802803]
[1721178782513,3.205,3497.1,3495.8,0.5802803]
[1721178782514,5.22106,3496.8,3495.8,0.5802803]
[1721178782753,3.205,3496.6,3495.8,0.5802803]
[1721178782961,6.06494,3496.6,3495.8,0.0346711]
[1721178783120,2.86,3496.5,3495.8,0.0346711]
[1721178783315,2.86,3496.5,3495.5,0.756092]
[1721178783521,2.86014,3496.4,3495.5,0.756092]
[1721178783721,2.86,3496.5,3495.6,0.03467995]
[1721178783722,3.205,3496.1,3495.6,0.03467995]
[1721178783922,6.06492,3496.6,3495.6,0.03467995]
[1721178784155,2.86,3496.5,3495.1,4.56114]
[1721178784356,6.06492,3496.6,3495.1,4.56114]
[1721178784574,2.86001,3496.5,3495.2,0.03469765]
[1721178784748,2.86001,3496.5,3495.3,0.17346977]
[1721178784956,2.86016,3496.3,3495.3,0.17346977]
[1721178785157,2.86016,3496.3,3495.4,0.03465695]
[1721178785672,2.86045,3496.0,3494.9,3.0]
[1721178785852,2.86045,3496.0,3495.0,0.03467465]
[1721178786034,2.86045,3496.0,3495.0,1.07814212]
[1721178786767,6.06533,3496.1,3495.0,0.03467465]
[1721178786969,1.49705714,3496.5,3495.0,1.73467465]
[1721178787154,2.86,3496.5,3495.0,4.56122]
[1721178787360,8.42608,3496.8,3495.4,1.7]
[1721178787562,5.5663,3496.8,3495.4,1.7]